[Event "*** SCC Grand Prix: Titled Tuesday Blitz"]
[Site "Chess.com"]
[Date "2020.08.11"]
[Round "9"]
[White "wonderfultime"]
[Black "vladislavkovalev"]
[Result "1/2-1/2"]
[WhiteElo "2979"]
[BlackElo "2890"]
[TimeControl "180+1"]
[EndTime "11:45:11 PDT"]
[Termination "Game drawn by agreement"]

1. d4 {[%clk 0:03:00.9]} 1... Nf6 {[%clk 0:03:00.4]} 2. Nf3 {[%clk 0:03:01.5]}
2... g6 {[%clk 0:03:00.1]} 3. Bg5 {[%clk 0:03:01.7]} 3... Bg7 {[%clk 0:03:00.7]}
4. Nbd2 {[%clk 0:03:02]} 4... O-O {[%clk 0:03:01.2]} 5. c3 {[%clk 0:03:02.6]}
5... d6 {[%clk 0:03:01.8]} 6. e4 {[%clk 0:03:02.9]} 6... c5 {[%clk 0:03:01.4]}
7. dxc5 {[%clk 0:03:03.8]} 7... dxc5 {[%clk 0:03:01.7]} 8. Bc4 {[%clk
0:03:04.4]} 8... Nc6 {[%clk 0:03:02.2]} 9. O-O {[%clk 0:03:03.7]} 9... h6 {[%clk
0:03:02.6]} 10. Bxf6 {[%clk 0:03:04]} 10... Bxf6 {[%clk 0:03:02.3]} 11. Qe2
{[%clk 0:03:04.9]} 11... Bg7 {[%clk 0:03:02.5]} 12. Rfd1 {[%clk 0:03:00.4]}
12... Qc7 {[%clk 0:03:02.2]} 13. Nf1 {[%clk 0:02:36.5]} 13... Na5 {[%clk
0:02:54.6]} 14. Bd3 {[%clk 0:02:33.5]} 14... Be6 {[%clk 0:02:54.1]} 15. Ne3
{[%clk 0:02:33]} 15... Rfd8 {[%clk 0:02:54.5]} 16. h3 {[%clk 0:02:27.4]} 16...
a6 {[%clk 0:02:45]} 17. Bc2 {[%clk 0:01:41.7]} 17... b5 {[%clk 0:02:37.9]} 18.
Nd5 {[%clk 0:01:41.3]} 18... Qb7 {[%clk 0:02:29.2]} 19. a4 {[%clk 0:01:41.4]}
19... b4 {[%clk 0:02:23.2]} 20. Rac1 {[%clk 0:01:36.1]} 20... Rd6 {[%clk
0:02:11.1]} 21. Bd3 {[%clk 0:01:25.4]} 21... Rad8 {[%clk 0:01:35.2]} 22. cxb4
{[%clk 0:01:25.3]} 22... Bxd5 {[%clk 0:01:35.5]} 23. exd5 {[%clk 0:01:18.9]}
23... Qxb4 {[%clk 0:01:32.2]} 24. Bxa6 {[%clk 0:01:12.2]} 24... Qxb2 {[%clk
0:01:21.4]} 25. Rxc5 {[%clk 0:01:04.8]} 25... Qb6 {[%clk 0:01:02.5]} 26. Rc8
{[%clk 0:00:31.2]} 26... Rxc8 {[%clk 0:00:58.8]} 27. Bxc8 {[%clk 0:00:32.1]}
27... Qd8 {[%clk 0:00:46.4]} 28. Ba6 {[%clk 0:00:29.3]} 28... Bf6 {[%clk
0:00:45.6]} 29. Bb5 {[%clk 0:00:23.9]} 29... Rxd5 {[%clk 0:00:42.3]} 30. Rxd5
{[%clk 0:00:24.8]} 30... Qxd5 {[%clk 0:00:43]} 31. g3 {[%clk 0:00:25.4]} 31...
Kg7 {[%clk 0:00:38.9]} 32. Nd2 {[%clk 0:00:23.2]} 32... e6 {[%clk 0:00:36.3]}
33. Ne4 {[%clk 0:00:23.3]} 33... Bd4 {[%clk 0:00:34.8]} 34. Nd2 {[%clk 0:00:21]}
34... Bc3 {[%clk 0:00:32.4]} 35. Ne4 {[%clk 0:00:20.7]} 35... Bd4 {[%clk
0:00:32.8]} 36. Nd2 {[%clk 0:00:21]} 36... Bc3 {[%clk 0:00:33.3]} 37. Ne4 {[%clk
0:00:21.5]} 1/2-1/2

[Event "*** SCC Grand Prix: Titled Tuesday Blitz"]
[Site "Chess.com"]
[Date "2020.08.11"]
[Round "9"]
[White "Gabix_94"]
[Black "wannabe2700"]
[Result "1-0"]
[WhiteElo "2856"]
[BlackElo "2680"]
[TimeControl "180+1"]
[EndTime "11:45:11 PDT"]
[Termination "Gabix_94 won on time"]

1. c4 {[%clk 0:03:00.9]} 1... f5 {[%clk 0:02:57.7]} 2. Nc3 {[%clk 0:03:01.6]}
2... Nf6 {[%clk 0:02:55.8]} 3. g3 {[%clk 0:03:02.3]} 3... g6 {[%clk 0:02:56]} 4.
Bg2 {[%clk 0:03:02.5]} 4... Bg7 {[%clk 0:02:56.4]} 5. d3 {[%clk 0:03:03.4]} 5...
O-O {[%clk 0:02:56.4]} 6. Nf3 {[%clk 0:03:04]} 6... d6 {[%clk 0:02:55.4]} 7. O-O
{[%clk 0:03:04.6]} 7... e5 {[%clk 0:02:55.5]} 8. Bg5 {[%clk 0:02:59.1]} 8... h6
{[%clk 0:02:53.8]} 9. Bxf6 {[%clk 0:02:58.1]} 9... Qxf6 {[%clk 0:02:52.1]} 10.
Nd2 {[%clk 0:02:59]} 10... g5 {[%clk 0:02:46.3]} 11. b4 {[%clk 0:02:58.3]} 11...
h5 {[%clk 0:02:40.6]} 12. e3 {[%clk 0:02:56.9]} 12... h4 {[%clk 0:02:37.3]} 13.
Nd5 {[%clk 0:02:52.4]} 13... Qf7 {[%clk 0:02:35.7]} 14. Nf3 {[%clk 0:02:48.4]}
14... hxg3 {[%clk 0:02:30.6]} 15. fxg3 {[%clk 0:02:47.5]} 15... Bh6 {[%clk
0:02:28.7]} 16. g4 {[%clk 0:02:42]} 16... c6 {[%clk 0:02:25.5]} 17. Nc3 {[%clk
0:02:39.2]} 17... fxg4 {[%clk 0:01:30.1]} 18. Nd2 {[%clk 0:02:27.1]} 18... Qe7
{[%clk 0:01:09.1]} 19. Rxf8+ {[%clk 0:02:24.1]} 19... Bxf8 {[%clk 0:01:10]} 20.
b5 {[%clk 0:02:20.6]} 20... Be6 {[%clk 0:00:56.3]} 21. Rb1 {[%clk 0:02:16.3]}
21... Qd8 {[%clk 0:00:51.6]} 22. Qe2 {[%clk 0:02:12.6]} 22... d5 {[%clk
0:00:46.7]} 23. bxc6 {[%clk 0:02:09.9]} 23... bxc6 {[%clk 0:00:46.6]} 24. cxd5
{[%clk 0:02:10.4]} 24... cxd5 {[%clk 0:00:47.5]} 25. Rb5 {[%clk 0:02:04.5]}
25... Nc6 {[%clk 0:00:41.8]} 26. Rxd5 {[%clk 0:02:01.4]} 26... Qb6 {[%clk
0:00:41.4]} 27. Rb5 {[%clk 0:01:58.1]} 27... Qa6 {[%clk 0:00:39.5]} 28. Nc4
{[%clk 0:01:55.5]} 28... Rd8 {[%clk 0:00:36.1]} 29. a4 {[%clk 0:01:51.1]} 29...
Bb4 {[%clk 0:00:27.7]} 30. Nd5 {[%clk 0:01:48]} 30... Qxa4 {[%clk 0:00:25.1]}
31. Nxb4 {[%clk 0:01:43.9]} 31... Nxb4 {[%clk 0:00:22.5]} 32. Rxe5 {[%clk
0:01:43]} 32... Bxc4 {[%clk 0:00:18.7]} 33. Rxg5+ {[%clk 0:01:40.5]} 33... Kf8
{[%clk 0:00:14.6]} 34. Qf1+ {[%clk 0:01:21.6]} 34... Bf7 {[%clk 0:00:13.2]} 35.
Qf6 {[%clk 0:01:21.9]} 35... Qd1+ {[%clk 0:00:10.9]} 36. Bf1 {[%clk 0:01:20.4]}
36... Rxd3 {[%clk 0:00:06.8]} 37. Rf5 {[%clk 0:01:14.9]} 37... Rd7 {[%clk
0:00:06.5]} 38. Qh6+ {[%clk 0:01:05.6]} 38... Ke7 {[%clk 0:00:06.3]} 39. Qf6+
{[%clk 0:01:02.1]} 39... Kf8 {[%clk 0:00:03.2]} 40. Rh5 {[%clk 0:00:59.3]} 1-0

[Event "*** SCC Grand Prix: Titled Tuesday Blitz"]
[Site "Chess.com"]
[Date "2020.08.11"]
[Round "9"]
[White "smshk35"]
[Black "Shubinkirill2003"]
[Result "0-1"]
[WhiteElo "2495"]
[BlackElo "2671"]
[TimeControl "180+1"]
[EndTime "11:45:11 PDT"]
[Termination "Shubinkirill2003 won by resignation"]

1. e4 {[%clk 0:03:00.9]} 1... e6 {[%clk 0:02:59.8]} 2. d4 {[%clk 0:03:00.7]}
2... d5 {[%clk 0:02:59.7]} 3. Nd2 {[%clk 0:03:01.3]} 3... Be7 {[%clk 0:02:59.6]}
4. Ngf3 {[%clk 0:03:00.6]} 4... Nf6 {[%clk 0:02:58.8]} 5. e5 {[%clk 0:03:00.8]}
5... Nfd7 {[%clk 0:02:58.9]} 6. c3 {[%clk 0:03:01.1]} 6... c5 {[%clk 0:02:59.3]}
7. Bd3 {[%clk 0:03:01.2]} 7... Nc6 {[%clk 0:02:59.9]} 8. O-O {[%clk 0:02:57.6]}
8... a5 {[%clk 0:02:59.9]} 9. a4 {[%clk 0:02:55.2]} 9... b6 {[%clk 0:02:59.1]}
10. Bb5 {[%clk 0:02:54.3]} 10... Na7 {[%clk 0:02:56.1]} 11. Qe2 {[%clk
0:02:48.5]} 11... Nxb5 {[%clk 0:02:54.4]} 12. axb5 {[%clk 0:02:48.5]} 12... c4
{[%clk 0:02:50.4]} 13. b3 {[%clk 0:02:27.3]} 13... cxb3 {[%clk 0:02:48.4]} 14.
Nxb3 {[%clk 0:02:27.4]} 14... O-O {[%clk 0:02:46.3]} 15. Bf4 {[%clk 0:02:25.6]}
15... Bb7 {[%clk 0:02:42.1]} 16. h4 {[%clk 0:02:20.8]} 16... Rc8 {[%clk
0:02:33.1]} 17. Qd3 {[%clk 0:02:05.3]} 17... Bxh4 {[%clk 0:02:21.7]} 18. Nxh4
{[%clk 0:02:03.9]} 18... Qxh4 {[%clk 0:02:20.6]} 19. g3 {[%clk 0:02:04.1]} 19...
Qe7 {[%clk 0:02:18.4]} 20. Kg2 {[%clk 0:01:59.1]} 20... f5 {[%clk 0:02:14.9]}
21. exf6 {[%clk 0:01:55.4]} 21... gxf6 {[%clk 0:02:04]} 22. Bh6 {[%clk
0:01:52.4]} 22... Rf7 {[%clk 0:02:01.8]} 23. f4 {[%clk 0:01:51.3]} 23... Kh8
{[%clk 0:01:55.9]} 24. Rae1 {[%clk 0:01:48.9]} 24... Rg8 {[%clk 0:01:53.4]} 25.
Qe3 {[%clk 0:01:34.5]} 25... e5 {[%clk 0:01:43.8]} 26. Kg1 {[%clk 0:01:16.5]}
26... e4 {[%clk 0:01:38.8]} 27. Kf2 {[%clk 0:01:15.7]} 27... Rc8 {[%clk
0:01:23]} 28. Rh1 {[%clk 0:01:14.1]} 28... Qa3 {[%clk 0:01:18.6]} 29. f5 {[%clk
0:00:55.9]} 29... Qxb3 {[%clk 0:01:14.7]} 30. Rc1 {[%clk 0:00:56.1]} 30... Qb2+
{[%clk 0:01:07.2]} 31. Kg1 {[%clk 0:00:52.2]} 31... a4 {[%clk 0:01:04.4]} 32.
Qf4 {[%clk 0:00:38.8]} 32... a3 {[%clk 0:00:54.4]} 33. Qd6 {[%clk 0:00:37.5]}
33... Rxc3 {[%clk 0:00:35.1]} 34. Rxc3 {[%clk 0:00:33.3]} 34... Qxc3 {[%clk
0:00:36]} 35. Qe6 {[%clk 0:00:33.7]} 35... Qxg3+ {[%clk 0:00:34.6]} 36. Kf1
{[%clk 0:00:33.6]} 36... a2 {[%clk 0:00:30.4]} 37. Qe8+ {[%clk 0:00:29.6]} 37...
Qg8 {[%clk 0:00:29.8]} 38. Bg7+ {[%clk 0:00:28.3]} 38... Rxg7 {[%clk 0:00:27.7]}
39. Rxh7+ {[%clk 0:00:28.6]} 39... Rxh7 {[%clk 0:00:26.5]} 0-1

[Event "*** SCC Grand Prix: Titled Tuesday Blitz"]
[Site "Chess.com"]
[Date "2020.08.11"]
[Round "9"]
[White "Sadykov_Ramil"]
[Black "Heineccius"]
[Result "0-1"]
[WhiteElo "2424"]
[BlackElo "2607"]
[TimeControl "180+1"]
[EndTime "11:45:13 PDT"]
[Termination "Heineccius won by resignation"]

1. e4 {[%clk 0:02:58.5]} 1... c5 {[%clk 0:02:58.8]} 2. Nf3 {[%clk 0:02:55.1]}
2... e6 {[%clk 0:02:59.1]} 3. d4 {[%clk 0:02:54.3]} 3... cxd4 {[%clk 0:02:59.7]}
4. Nxd4 {[%clk 0:02:55.2]} 4... Nc6 {[%clk 0:02:59.5]} 5. Nc3 {[%clk 0:02:52]}
5... Qc7 {[%clk 0:02:59.2]} 6. Be3 {[%clk 0:02:48.8]} 6... a6 {[%clk 0:02:55.7]}
7. Qf3 {[%clk 0:02:45.1]} 7... Nf6 {[%clk 0:02:54.1]} 8. O-O-O {[%clk
0:02:41.1]} 8... Rb8 {[%clk 0:02:53.4]} 9. Bf4 {[%clk 0:02:12]} 9... e5 {[%clk
0:02:45.5]} 10. Nd5 {[%clk 0:02:11.1]} 10... Nxd5 {[%clk 0:02:34.6]} 11. exd5
{[%clk 0:02:10.9]} 11... Nxd4 {[%clk 0:02:31.6]} 12. Rxd4 {[%clk 0:01:29.9]}
12... exf4 {[%clk 0:01:56.5]} 13. Qe4+ {[%clk 0:01:26.7]} 13... Kd8 {[%clk
0:01:55.6]} 14. d6 {[%clk 0:01:26.6]} 14... Bxd6 {[%clk 0:01:50.6]} 15. Bc4
{[%clk 0:01:23]} 15... Be5 {[%clk 0:01:19.8]} 16. Re1 {[%clk 0:01:11.7]} 16...
Re8 {[%clk 0:01:00.6]} 17. Bxf7 {[%clk 0:00:56.5]} 17... Re7 {[%clk 0:00:58.6]}
18. Rc4 {[%clk 0:00:50.9]} 18... Bxb2+ {[%clk 0:00:53.4]} 19. Kb1 {[%clk
0:00:32.9]} 19... Rxe4 {[%clk 0:00:52]} 20. Rexe4 {[%clk 0:00:33.8]} 20... Qxc4
{[%clk 0:00:33.5]} 21. Re8+ {[%clk 0:00:28.3]} 21... Kc7 {[%clk 0:00:32.3]} 22.
Bxc4 {[%clk 0:00:29.2]} 22... Bf6 {[%clk 0:00:29.1]} 23. Bd3 {[%clk 0:00:17.6]}
23... h6 {[%clk 0:00:26]} 24. Re4 {[%clk 0:00:11.7]} 24... b5 {[%clk 0:00:26.2]}
25. Rxf4 {[%clk 0:00:11.1]} 25... Bb7 {[%clk 0:00:26.7]} 26. g4 {[%clk
0:00:10.9]} 26... Re8 {[%clk 0:00:26.4]} 27. Kc1 {[%clk 0:00:06.7]} 27... Bg5
{[%clk 0:00:24.6]} 0-1

[Event "*** SCC Grand Prix: Titled Tuesday Blitz"]
[Site "Chess.com"]
[Date "2020.08.11"]
[Round "9"]
[White "pastouche06"]
[Black "Ural_bogatyr"]
[Result "1-0"]
[WhiteElo "2500"]
[BlackElo "2355"]
[TimeControl "180+1"]
[EndTime "11:45:14 PDT"]
[Termination "pastouche06 won on time"]

1. d4 {[%clk 0:03:00.9]} 1... Nf6 {[%clk 0:02:58]} 2. c4 {[%clk 0:02:59.3]} 2...
e5 {[%clk 0:02:57.9]} 3. dxe5 {[%clk 0:02:59]} 3... Ng4 {[%clk 0:02:57.6]} 4. e3
{[%clk 0:02:59.3]} 4... Nxe5 {[%clk 0:02:56.9]} 5. Nh3 {[%clk 0:02:59.8]} 5...
d5 {[%clk 0:02:57]} 6. Qxd5 {[%clk 0:02:59.1]} 6... Qf6 {[%clk 0:02:56.6]} 7.
Nf4 {[%clk 0:02:58.9]} 7... c6 {[%clk 0:02:56.3]} 8. Qd2 {[%clk 0:02:58.8]} 8...
Bf5 {[%clk 0:02:56.6]} 9. Be2 {[%clk 0:02:55.8]} 9... Nbd7 {[%clk 0:02:55.3]}
10. O-O {[%clk 0:02:51.9]} 10... O-O-O {[%clk 0:02:54.4]} 11. Qa5 {[%clk
0:02:52.2]} 11... Bd6 {[%clk 0:02:53]} 12. Qxa7 {[%clk 0:02:39.9]} 12... h5
{[%clk 0:02:40.3]} 13. g3 {[%clk 0:02:01.9]} 13... h4 {[%clk 0:02:32.8]} 14. e4
{[%clk 0:01:45.8]} 14... hxg3 {[%clk 0:02:02]} 15. exf5 {[%clk 0:01:32.3]} 15...
Qh4 {[%clk 0:01:24.5]} 16. h3 {[%clk 0:01:25.4]} 16... Bc5 {[%clk 0:00:30.8]}
17. Qa8+ {[%clk 0:01:24.9]} 17... Kc7 {[%clk 0:00:30.4]} 18. Qa5+ {[%clk
0:01:22.4]} 18... Bb6 {[%clk 0:00:29.7]} 19. Qc3 {[%clk 0:01:14.2]} 19... gxf2+
{[%clk 0:00:20.1]} 20. Kg2 {[%clk 0:01:10.8]} 20... Rde8 {[%clk 0:00:11.3]} 21.
Qg3 {[%clk 0:01:07.6]} 21... Qf6 {[%clk 0:00:05]} 22. Nc3 {[%clk 0:01:03.7]}
22... Kc8 {[%clk 0:00:03]} 23. Ne4 {[%clk 0:01:00.6]} 23... Qe7 {[%clk
0:00:01.7]} 24. Nxf2 {[%clk 0:00:56]} 24... f6 {[%clk 0:00:01.8]} 25. Qa3 {[%clk
0:00:38.3]} 25... Nf7 {[%clk 0:00:01.9]} 26. Qa8+ {[%clk 0:00:33.6]} 26... Kc7
{[%clk 0:00:01.4]} 27. Ne6+ {[%clk 0:00:33.4]} 27... Kd6 {[%clk 0:00:01.4]} 28.
Bf4+ {[%clk 0:00:27.8]} 28... Nfe5 {[%clk 0:00:01]} 29. Rad1+ {[%clk 0:00:26.6]}
1-0

[Event "*** SCC Grand Prix: Titled Tuesday Blitz"]
[Site "Chess.com"]
[Date "2020.08.11"]
[Round "9"]
[White "Kotofeyca"]
[Black "GlennTipton"]
[Result "0-1"]
[WhiteElo "2291"]
[BlackElo "2441"]
[TimeControl "180+1"]
[EndTime "11:45:14 PDT"]
[Termination "GlennTipton won on time"]

1. d4 {[%clk 0:03:00.9]} 1... Nf6 {[%clk 0:02:59.3]} 2. c4 {[%clk 0:03:01]} 2...
c5 {[%clk 0:02:59.4]} 3. Nf3 {[%clk 0:03:00.6]} 3... e6 {[%clk 0:03:00]} 4. Nc3
{[%clk 0:02:59.9]} 4... cxd4 {[%clk 0:03:00.5]} 5. Nxd4 {[%clk 0:03:00.8]} 5...
a6 {[%clk 0:03:01.1]} 6. g3 {[%clk 0:03:00.3]} 6... d5 {[%clk 0:03:01.2]} 7.
cxd5 {[%clk 0:02:56.7]} 7... Nxd5 {[%clk 0:03:02.1]} 8. Bg2 {[%clk 0:02:56.1]}
8... Nxc3 {[%clk 0:03:02.4]} 9. bxc3 {[%clk 0:02:56.7]} 9... e5 {[%clk
0:03:01.6]} 10. Nb3 {[%clk 0:02:39.2]} 10... Qxd1+ {[%clk 0:02:59.8]} 11. Kxd1
{[%clk 0:02:40.1]} 11... Nc6 {[%clk 0:02:59.7]} 12. Kc2 {[%clk 0:02:34.3]} 12...
Bf5+ {[%clk 0:02:58.5]} 13. e4 {[%clk 0:02:27.4]} 13... Be6 {[%clk 0:02:58.3]}
14. Be3 {[%clk 0:02:27.2]} 14... O-O-O {[%clk 0:02:58]} 15. Nc5 {[%clk
0:02:24.9]} 15... Bxc5 {[%clk 0:02:57.1]} 16. Bxc5 {[%clk 0:02:24.3]} 16... Rd7
{[%clk 0:02:54]} 17. Bb6 {[%clk 0:02:21.4]} 17... Nb8 {[%clk 0:02:41.8]} 18. a4
{[%clk 0:02:10.7]} 18... Rd6 {[%clk 0:02:41.4]} 19. a5 {[%clk 0:01:59.2]} 19...
Nd7 {[%clk 0:02:41.1]} 20. Be3 {[%clk 0:01:57.1]} 20... Rd8 {[%clk 0:02:39.6]}
21. Rhb1 {[%clk 0:01:44.4]} 21... Nb8 {[%clk 0:02:27.9]} 22. Ra4 {[%clk
0:01:31.7]} 22... Nc6 {[%clk 0:02:25.6]} 23. Bf1 {[%clk 0:01:31.6]} 23... g6
{[%clk 0:02:17.7]} 24. Be2 {[%clk 0:01:24.5]} 24... f5 {[%clk 0:02:16.8]} 25.
Bc4 {[%clk 0:01:02]} 25... Bxc4 {[%clk 0:02:08.3]} 26. Rxc4 {[%clk 0:01:01.1]}
26... fxe4 {[%clk 0:02:08.5]} 27. Rxe4 {[%clk 0:00:57.4]} 27... Rd5 {[%clk
0:02:08.5]} 28. Bb6 {[%clk 0:00:52.8]} 28... Rd2+ {[%clk 0:02:07.2]} 29. Kb3
{[%clk 0:00:51.8]} 29... R8d5 {[%clk 0:02:03.6]} 30. c4 {[%clk 0:00:18.3]} 30...
Nxa5+ {[%clk 0:01:57.5]} 31. Kc3 {[%clk 0:00:16.7]} 31... R5d3+ {[%clk
0:01:55.8]} 32. Kb4 {[%clk 0:00:16.2]} 32... Nc6+ {[%clk 0:01:53.3]} 33. Kc5
{[%clk 0:00:16.2]} 33... Rxf2 {[%clk 0:01:50.7]} 34. Rbe1 {[%clk 0:00:15]} 34...
a5 {[%clk 0:01:36.8]} 35. Rh4 {[%clk 0:00:13.4]} 35... h5 {[%clk 0:01:27.7]} 36.
g4 {[%clk 0:00:13.6]} 36... Rf4 {[%clk 0:01:26.8]} 37. h3 {[%clk 0:00:03.6]}
37... a4 {[%clk 0:01:26.3]} 38. Ra1 {[%clk 0:00:02.7]} 38... a3 {[%clk
0:01:25.3]} 39. Kb5 {[%clk 0:00:01.1]} 39... Rb3+ {[%clk 0:01:16.5]} 0-1

[Event "*** SCC Grand Prix: Titled Tuesday Blitz"]
[Site "Chess.com"]
[Date "2020.08.11"]
[Round "9"]
[White "Son_of_Sultan"]
[Black "TregubovP"]
[Result "1-0"]
[WhiteElo "2727"]
[BlackElo "2595"]
[TimeControl "180+1"]
[EndTime "11:45:15 PDT"]
[Termination "Son_of_Sultan won on time"]

1. d4 {[%clk 0:03:00.9]} 1... Nf6 {[%clk 0:02:59.2]} 2. Nf3 {[%clk 0:02:54.3]}
2... e6 {[%clk 0:02:58.3]} 3. g3 {[%clk 0:02:50.5]} 3... c5 {[%clk 0:02:52.3]}
4. Bg2 {[%clk 0:02:48.2]} 4... cxd4 {[%clk 0:02:48.1]} 5. O-O {[%clk 0:02:45.7]}
5... d5 {[%clk 0:02:48.1]} 6. Nxd4 {[%clk 0:02:41.8]} 6... e5 {[%clk 0:02:45.6]}
7. Nb3 {[%clk 0:02:37.4]} 7... Nc6 {[%clk 0:02:42.3]} 8. c4 {[%clk 0:02:33.1]}
8... dxc4 {[%clk 0:02:22.1]} 9. Bxc6+ {[%clk 0:02:24.8]} 9... bxc6 {[%clk
0:02:21.4]} 10. Qxd8+ {[%clk 0:02:25.7]} 10... Kxd8 {[%clk 0:02:21.1]} 11. Na5
{[%clk 0:02:25]} 11... Kc7 {[%clk 0:02:00.5]} 12. Nxc4 {[%clk 0:02:23.8]} 12...
Nd7 {[%clk 0:02:00.8]} 13. b3 {[%clk 0:02:13]} 13... Ba6 {[%clk 0:01:55.9]} 14.
Nbd2 {[%clk 0:02:07.7]} 14... f6 {[%clk 0:01:48.8]} 15. Bb2 {[%clk 0:02:00.2]}
15... Bb4 {[%clk 0:01:41.8]} 16. Rfd1 {[%clk 0:01:56.2]} 16... Bxd2 {[%clk
0:01:29.3]} 17. Rxd2 {[%clk 0:01:54.4]} 17... Bxc4 {[%clk 0:01:29.7]} 18. bxc4
{[%clk 0:01:54.2]} 18... Nb6 {[%clk 0:01:29.8]} 19. Rc2 {[%clk 0:01:45]} 19...
Rhd8 {[%clk 0:01:26.1]} 20. f4 {[%clk 0:01:44.4]} 20... exf4 {[%clk 0:01:12.2]}
21. gxf4 {[%clk 0:01:43.7]} 21... Re8 {[%clk 0:01:12.5]} 22. Bd4 {[%clk
0:01:36.8]} 22... Re4 {[%clk 0:00:44.6]} 23. e3 {[%clk 0:01:36.3]} 23... Nd7
{[%clk 0:00:45]} 24. c5 {[%clk 0:01:07.5]} 24... Rb8 {[%clk 0:00:44.9]} 25. Kf2
{[%clk 0:01:03.9]} 25... Nf8 {[%clk 0:00:37.8]} 26. Kf3 {[%clk 0:01:03]} 26...
Re7 {[%clk 0:00:37.7]} 27. f5 {[%clk 0:01:00.4]} 27... Nd7 {[%clk 0:00:36.9]}
28. Rg1 {[%clk 0:00:56.8]} 28... Rb4 {[%clk 0:00:30.5]} 29. Rcg2 {[%clk
0:00:55]} 29... g5 {[%clk 0:00:09.9]} 30. fxg6 {[%clk 0:00:51.8]} 30... hxg6
{[%clk 0:00:09.8]} 31. Rxg6 {[%clk 0:00:51.4]} 31... Ra4 {[%clk 0:00:10.1]} 32.
Rg7 {[%clk 0:00:50.2]} 32... Rxg7 {[%clk 0:00:07.3]} 33. Rxg7 {[%clk 0:00:51.1]}
33... Kd8 {[%clk 0:00:07.7]} 34. h4 {[%clk 0:00:47.5]} 34... Rxa2 {[%clk
0:00:06.7]} 35. Kg3 {[%clk 0:00:44.7]} 1-0

[Event "*** SCC Grand Prix: Titled Tuesday Blitz"]
[Site "Chess.com"]
[Date "2020.08.11"]
[Round "9"]
[White "GMaka"]
[Black "chegueps"]
[Result "0-1"]
[WhiteElo "2346"]
[BlackElo "2474"]
[TimeControl "180+1"]
[EndTime "11:45:20 PDT"]
[Termination "chegueps won by resignation"]

1. b3 {[%clk 0:03:00.9]} 1... c5 {[%clk 0:02:49.8]} 2. e4 {[%clk 0:02:59.9]}
2... Nc6 {[%clk 0:02:49.4]} 3. f4 {[%clk 0:02:59.1]} 3... d6 {[%clk 0:02:49.5]}
4. Nf3 {[%clk 0:02:59.4]} 4... e5 {[%clk 0:02:49.8]} 5. fxe5 {[%clk 0:02:54.2]}
5... dxe5 {[%clk 0:02:48.7]} 6. Bb5 {[%clk 0:02:52.4]} 6... Bd7 {[%clk
0:02:42.3]} 7. Bb2 {[%clk 0:02:47.7]} 7... f6 {[%clk 0:02:41.6]} 8. Nc3 {[%clk
0:02:41.9]} 8... Nd4 {[%clk 0:02:40.2]} 9. Bxd7+ {[%clk 0:02:40.8]} 9... Qxd7
{[%clk 0:02:41.1]} 10. Nd5 {[%clk 0:02:39]} 10... Ne7 {[%clk 0:02:41]} 11. c4
{[%clk 0:02:36.3]} 11... Nxd5 {[%clk 0:02:38.7]} 12. cxd5 {[%clk 0:02:37.2]}
12... Bd6 {[%clk 0:02:37.4]} 13. Bxd4 {[%clk 0:02:33.7]} 13... exd4 {[%clk
0:02:37]} 14. d3 {[%clk 0:02:34.3]} 14... O-O {[%clk 0:02:34.5]} 15. O-O {[%clk
0:02:33.8]} 15... Bf4 {[%clk 0:02:29.9]} 16. Nh4 {[%clk 0:02:31.4]} 16... Be3+
{[%clk 0:02:28.5]} 17. Kh1 {[%clk 0:02:32]} 17... g6 {[%clk 0:02:29.1]} 18. Qf3
{[%clk 0:02:24.3]} 18... a5 {[%clk 0:02:23.4]} 19. a4 {[%clk 0:02:14.6]} 19...
Ra6 {[%clk 0:02:17.5]} 20. g3 {[%clk 0:02:13.5]} 20... Raa8 {[%clk 0:02:10.7]}
21. Ng2 {[%clk 0:02:13.7]} 21... Bh6 {[%clk 0:02:11.1]} 22. Nf4 {[%clk
0:02:14.2]} 22... Bxf4 {[%clk 0:02:08.6]} 23. gxf4 {[%clk 0:02:12]} 23... b5
{[%clk 0:02:06.1]} 24. Rg1 {[%clk 0:02:11]} 24... Kh8 {[%clk 0:02:03.4]} 25. Qg4
{[%clk 0:01:58.2]} 25... Qb7 {[%clk 0:01:54]} 26. Qe6 {[%clk 0:01:50.3]} 26...
bxa4 {[%clk 0:01:42.3]} 27. bxa4 {[%clk 0:01:49.7]} 27... Qb3 {[%clk 0:01:32.6]}
28. Rg3 {[%clk 0:01:42]} 28... Rae8 {[%clk 0:01:22.1]} 29. Qc6 {[%clk
0:01:35.8]} 29... Qc3 {[%clk 0:01:12.5]} 30. Rag1 {[%clk 0:01:27.3]} 30... Rc8
{[%clk 0:01:01.9]} 31. Qe6 {[%clk 0:01:04.1]} 31... Rce8 {[%clk 0:00:41.9]} 32.
Qh3 {[%clk 0:01:03.4]} 32... c4 {[%clk 0:00:33.6]} 33. d6 {[%clk 0:00:31.3]}
33... cxd3 {[%clk 0:00:31]} 34. Rxd3 {[%clk 0:00:32.2]} 34... Qc6 {[%clk
0:00:31]} 35. d7 {[%clk 0:00:25.8]} 35... Qxe4+ {[%clk 0:00:29.8]} 36. Rg2
{[%clk 0:00:24.1]} 36... Rd8 {[%clk 0:00:27.1]} 37. Qg4 {[%clk 0:00:13.2]} 0-1

[Event "*** SCC Grand Prix: Titled Tuesday Blitz"]
[Site "Chess.com"]
[Date "2020.08.11"]
[Round "9"]
[White "Sergey85Rodchenkov"]
[Black "praveenb2002"]
[Result "1-0"]
[WhiteElo "2490"]
[BlackElo "2716"]
[TimeControl "180+1"]
[EndTime "11:45:21 PDT"]
[Termination "Sergey85Rodchenkov won by checkmate"]

1. e4 {[%clk 0:03:00.9]} 1... c5 {[%clk 0:02:59.1]} 2. Nf3 {[%clk 0:03:00.9]}
2... d6 {[%clk 0:02:59]} 3. d4 {[%clk 0:03:00.8]} 3... cxd4 {[%clk 0:02:59.2]}
4. Nxd4 {[%clk 0:03:01.3]} 4... Nf6 {[%clk 0:02:58.6]} 5. Nc3 {[%clk 0:03:01.4]}
5... Nc6 {[%clk 0:02:58.2]} 6. Bc4 {[%clk 0:03:00.9]} 6... e6 {[%clk 0:02:52.7]}
7. O-O {[%clk 0:02:59.8]} 7... Be7 {[%clk 0:02:51.2]} 8. Kh1 {[%clk 0:02:59.3]}
8... O-O {[%clk 0:02:50.8]} 9. f4 {[%clk 0:02:59.4]} 9... d5 {[%clk 0:02:48.8]}
10. exd5 {[%clk 0:02:58.2]} 10... exd5 {[%clk 0:02:43.3]} 11. Bb3 {[%clk
0:02:58.1]} 11... Bg4 {[%clk 0:02:38.7]} 12. Qd3 {[%clk 0:02:57.5]} 12... Re8
{[%clk 0:02:38.2]} 13. Be3 {[%clk 0:02:46.4]} 13... Bb4 {[%clk 0:02:34.4]} 14.
h3 {[%clk 0:02:22.1]} 14... Bxc3 {[%clk 0:02:22.7]} 15. bxc3 {[%clk 0:02:20.8]}
15... Bd7 {[%clk 0:02:12.7]} 16. Rad1 {[%clk 0:02:15.1]} 16... Na5 {[%clk
0:02:11.1]} 17. f5 {[%clk 0:02:11.8]} 17... Ne4 {[%clk 0:02:01.7]} 18. Bf4
{[%clk 0:01:23.9]} 18... Rc8 {[%clk 0:01:58.1]} 19. Bxd5 {[%clk 0:01:15.7]}
19... Rxc3 {[%clk 0:01:55.6]} 20. Qxe4 {[%clk 0:01:06.6]} 20... Rxe4 {[%clk
0:01:55.1]} 21. Bxe4 {[%clk 0:01:07.3]} 21... h6 {[%clk 0:01:25.1]} 22. Rfe1
{[%clk 0:00:50.6]} 22... Qh4 {[%clk 0:01:19.2]} 23. Bd2 {[%clk 0:00:38.6]} 23...
Rc5 {[%clk 0:01:18.7]} 24. Bb4 {[%clk 0:00:26.3]} 24... Rc4 {[%clk 0:00:59.9]}
25. Bxa5 {[%clk 0:00:24.8]} 25... b6 {[%clk 0:00:57.7]} 26. Nf3 {[%clk
0:00:19.7]} 26... Qg3 {[%clk 0:00:47.9]} 27. Rxd7 {[%clk 0:00:17.2]} 27... bxa5
{[%clk 0:00:47.2]} 28. Rd8+ {[%clk 0:00:14.5]} 28... Kh7 {[%clk 0:00:47.4]} 29.
f6+ {[%clk 0:00:14.9]} 29... g6 {[%clk 0:00:47.7]} 30. Bd3 {[%clk 0:00:14.4]}
30... Rf4 {[%clk 0:00:16.2]} 31. Ree8 {[%clk 0:00:13.5]} 31... Rxf6 {[%clk
0:00:10.2]} 32. Rh8+ {[%clk 0:00:12.9]} 32... Kg7 {[%clk 0:00:10.5]} 33. Rdg8#
{[%clk 0:00:13.5]} 1-0